bitfinex/quotes_SOLUSD_20260224
["timestamp","ask_amount","ask_price","bid_price","bid_amount"]
[1771896226122,22.82287996,77.61,77.581,0.488491]
[1771896226333,12.88510353,77.609,77.581,0.488491]
[1771896226537,22.82287996,77.59,77.569,0.488491]
[1771896226816,22.82287996,77.6,77.571,0.488491]
[1771896227238,45.09786235,77.609,77.571,0.488491]
[1771896227444,22.82287996,77.58,77.56,0.2]
[1771896228237,22.82287996,77.59,77.56,0.2]
[1771896228437,12.8884249,77.589,77.56,0.2]
[1771896229147,45.10948716,77.589,77.56,0.2]
[1771896229343,12.8884249,77.589,77.56,0.2]
[1771896229935,22.82287996,77.58,77.56,0.2]
[1771896230137,12.8884249,77.589,77.561,12.8930777]
[1771896230437,12.8884249,77.589,77.56,0.2]
[1771896230838,12.8884249,77.589,77.561,12.8930777]
[1771896231346,12.8884249,77.589,77.562,0.49278145]
[1771896231543,12.886764,77.599,77.562,0.49278145]
[1771896231751,45.10367401,77.599,77.562,0.49278145]
[1771896231931,12.886764,77.599,77.562,0.49278145]
[1771896232450,22.82287996,77.61,77.571,0.49278145]
[1771896232748,22.82287996,77.62,77.571,0.49278145]
[1771896232934,22.82287996,77.61,77.571,0.49278145]
[1771896233648,22.82287996,77.62,77.581,0.49278145]
[1771896234225,22.82287996,77.62,77.563,45.40893152]
[1771896234226,12.88294555,77.622,77.591,0.49278145]
[1771896234645,22.82287996,77.63,77.563,109.87265778]
[1771896234646,12.88178386,77.629,77.593,0.49278145]
[1771896234843,45.08624353,77.629,77.593,0.49278145]
[1771896235248,22.82287996,77.62,77.593,0.49278145]
[1771896235851,22.82287996,77.62,77.56,0.2]
[1771896235852,0.2,77.65,77.596,0.28432314]
[1771896236058,22.82287996,77.63,77.593,0.49278145]
[1771896236233,22.82287996,77.62,77.593,0.49278145]
[1771896236851,12.88344348,77.619,77.593,0.49278145]
[1771896237054,12.88344348,77.619,77.582,12.88958779]
[1771896237238,12.88344348,77.619,77.583,0.49278145]
[1771896237754,22.82287996,77.61,77.571,0.49278145]
[1771896237959,22.82287996,77.61,77.561,12.8930777]
[1771896237960,12.88344348,77.619,77.581,0.49278145]
[1771896238835,45.09205219,77.619,77.581,0.49278145]
[1771896239047,45.09205219,77.619,77.583,0.49278145]
[1771896239766,0.233149,77.65,77.591,0.49278145]
[1771896240051,22.82287996,77.64,77.601,0.49278145]
[1771896240440,45.0746307,77.649,77.611,0.49278145]
[1771896240637,22.82287996,77.64,77.611,0.49278145]
[1771896240844,12.88012467,77.639,77.612,0.49278145]
[1771896241238,0.2,77.65,77.617,0.28432314]
[1771896241561,22.82287996,77.64,77.607,13.37818837]
[1771896241853,22.82287996,77.63,77.597,0.49278145]
[1771896242054,22.82287996,77.63,77.599,0.49278145]
[1771896242258,45.0746307,77.649,77.598,12.88693007]
[1771896242259,45.0746307,77.649,77.601,0.49278145]
[1771896242466,22.82287996,77.64,77.611,0.49278145]
[1771896242752,22.82287996,77.64,77.611,0.29278145]
[1771896242959,22.82287996,77.62,77.57,0.28432314]
[1771896243140,22.82287996,77.63,77.59,22.82287996]
[1771896243346,22.82287996,77.63,77.573,0.14216157]
[1771896243663,22.82287996,77.63,77.59,22.82287996]
[1771896243870,22.82287996,77.63,77.591,0.28432314]
[1771896244042,12.87855028,77.649,77.61,22.82287996]
[1771896244360,23.02287996,77.65,77.569,32.22936998]
[1771896244361,0.2,77.65,77.62,22.82287996]
[1771896244550,0.2,77.65,77.621,0.49278145]
[1771896244752,0.2,77.65,77.623,0.49278145]
[1771896244955,0.2,77.65,77.625,0.49278145]
[1771896245162,32.18514668,77.676,77.624,12.88261362]
[1771896245163,22.82287996,77.67,77.631,0.49278145]
[1771896245342,35.69792666,77.67,77.631,0.49278145]
[1771896245538,12.87413623,77.676,77.641,0.49278145]
[1771896245737,12.87413623,77.676,77.632,0.28432314]
[1771896245738,1e-08,77.69,77.661,0.14216157]
[1771896245958,0.2,77.7,77.671,0.49278145]
[1771896246164,0.2,77.7,77.68,22.82287996]
[1771896246351,0.2,77.7,77.671,0.49278145]
[1771896246858,0.2,77.7,77.672,12.87465238]
[1771896247059,23.02287996,77.7,77.671,0.49278145]
[1771896247241,0.45722128,77.679,77.63,22.82287996]
[1771896247437,22.82287996,77.67,77.621,0.14216157]
[1771896247662,22.82287996,77.65,77.61,22.82287996]
[1771896248044,22.82287996,77.67,77.63,22.82287996]
[1771896248361,22.82287996,77.68,77.64,22.82287996]
[1771896248540,0.45722128,77.689,77.65,22.82287996]
[1771896248937,0.2,77.7,77.67,22.82287996]
[1771896249156,0.45722128,77.689,77.651,12.87813421]
[1771896249462,0.2,77.7,77.671,0.49278145]
[1771896249643,23.02287996,77.7,77.671,0.49278145]
[1771896249833,22.82287996,77.69,77.66,0.49278145]
[1771896250038,12.8701785,77.699,77.66,0.49278145]
[1771896250336,0.2,77.71,77.681,0.28432314]
[1771896250537,12.86190176,77.749,77.7,22.82287996]
[1771896250852,22.82287996,77.74,77.7,22.82287996]
[1771896251046,0.2,77.75,77.704,3.69383402]
[1771896251244,0.2,77.75,77.71,22.82287996]
[1771896251438,0.2,77.75,77.72,22.82287996]
[1771896251645,0.45722128,77.775,77.74,22.82287996]
[1771896251843,0.45722128,77.798,77.75,22.82287996]
[1771896252046,0.45722128,77.798,77.76,22.82287996]
[1771896252270,51.36186036,77.879,77.78,22.82287996]
[1771896252560,0.5,77.849,77.81,22.82287996]
[1771896252740,51.36186036,77.879,77.778,3.69383402]
[1771896252741,0.5,77.863,77.801,0.28432314]
[1771896252939,22.82287996,77.83,77.79,22.82287996]
[1771896253141,22.82287996,77.83,77.783,0.28432314]
[1771896253363,44.96460642,77.839,77.761,0.28432314]
[1771896253364,22.82287996,77.8,77.761,0.28432314]
[1771896253555,22.82287996,77.8,77.76,22.82287996]
[1771896253871,44.96460642,77.839,77.77,22.82287996]
[1771896254044,44.96460642,77.839,77.748,3.69383402]
[1771896254045,22.82287996,77.83,77.79,22.82287996]
[1771896254361,0.5,77.84,77.81,22.82287996]
[1771896254544,0.5,77.84,77.75,22.82287996]
[1771896254866,0.5,77.843,77.81,22.82287996]
[1771896255171,0.5,77.829,77.761,0.28432314]
[1771896255459,0.5,77.809,77.78,22.82287996]
[1771896255664,0.5,77.809,77.77,22.82287996]
[1771896255959,0.5,77.809,77.78,22.82287996]
[1771896256143,0.5,77.833,77.8,22.82287996]
[1771896256343,0.5,77.829,77.79,22.82287996]
[1771896256560,0.5,77.819,77.78,22.82287996]
[1771896256866,0.5,77.809,77.77,0.2]
[1771896257066,0.5,77.809,77.771,12.85826336]
[1771896257363,0.5,77.819,77.78,22.82287996]
[1771896257554,12.84439021,77.855,77.79,22.82287996]
[1771896257755,0.5,77.829,77.79,22.82287996]
[1771896258361,22.82287996,77.8,77.78,0.2]
[1771896258559,0.5,77.789,77.77,1e-08]
[1771896258765,22.82287996,77.78,77.701,0.2]
[1771896258973,22.82287996,77.78,77.7,22.82287996]
[1771896258974,22.82287996,77.78,77.74,22.82287996]
[1771896259175,22.82287996,77.79,77.75,22.82287996]
[1771896259375,22.82287996,77.77,77.73,22.82287996]
[1771896259572,22.82287996,77.78,77.73,22.82287996]
[1771896259872,22.82287996,77.78,77.74,22.82287996]
[1771896260090,22.82287996,77.77,77.72,22.82287996]
[1771896260391,22.82287996,77.8,77.75,22.82287996]
[1771896260750,0.49419926,77.799,77.76,22.82287996]
[1771896260962,0.49419926,77.799,77.751,0.28432314]
[1771896261150,12.85380086,77.798,77.752,12.86140549]
[1771896261351,23.31096719,77.81,77.771,0.28432314]
[1771896261568,0.48808723,77.799,77.76,22.82287996]
[1771896262070,22.82287996,77.82,77.78,22.82287996]
[1771896262272,0.48808723,77.819,77.78,22.82287996]
[1771896262478,0.48808723,77.809,77.77,22.82287996]
[1771896262852,22.82287996,77.8,77.76,22.82287996]
[1771896263069,3.69383402,77.832,77.752,12.86140549]
[1771896263070,0.48808723,77.814,77.77,22.82287996]
[1771896263380,0.48808723,77.807,77.771,12.85826336]
[1771896263577,0.48808723,77.83,77.78,22.82287996]
[1771896263760,0.48808723,77.829,77.781,0.28432314]
[1771896263961,0.48808723,77.829,77.79,22.82287996]
[1771896264183,0.48808723,77.829,77.771,45.00392176]
[1771896264373,0.48808723,77.829,77.79,22.82287996]
[1771896264679,22.82287996,77.83,77.781,0.28432314]
[1771896264680,0.48808723,77.819,77.781,0.28432314]
[1771896264883,0.48808723,77.819,77.78,22.82287996]
[1771896265075,0.48808723,77.809,77.77,22.82287996]
[1771896265259,0.48808723,77.809,77.75,22.82287996]
[1771896265260,0.48808723,77.789,77.751,12.86157091]
[1771896265460,0.48808723,77.789,77.752,0.28432314]
[1771896265671,0.48808723,77.788,77.74,22.82287996]
[1771896265861,13.34345003,77.789,77.75,22.82287996]
[1771896266166,0.48808723,77.788,77.741,0.2]
[1771896266375,0.48808723,77.779,77.742,0.14216157]
[1771896266681,22.82287996,77.77,77.73,22.82287996]
[1771896266885,22.82287996,77.78,77.74,22.82287996]
[1771896267100,0.48808723,77.779,77.741,0.14216157]
[1771896267278,0.48808723,77.779,77.741,13.00538689]
[1771896267480,0.48808723,77.828,77.771,0.2]
[1771896267688,0.48808723,77.849,77.811,0.28432314]
[1771896267865,51.34639391,77.903,77.781,5.36086188]
[1771896267866,0.48808723,77.878,77.841,0.28432314]
[1771896268285,0.48808723,77.884,77.841,0.28432314]
[1771896268484,35.86327686,77.88,77.84,22.82287996]
[1771896268684,0.48808723,77.869,77.824,0.2]
[1771896268988,0.48808723,77.869,77.831,0.28432314]
[1771896269190,0.48808723,77.869,77.821,0.28432314]
[1771896269370,0.48808723,77.867,77.823,0.28432314]
[1771896270085,55.12805405,77.87,77.84,22.82287996]
[1771896270086,0.2,77.87,77.84,22.82287996]
[1771896270295,0.2,77.88,77.85,22.82287996]
[1771896270466,0.2,77.88,77.84,22.82287996]
[1771896270467,0.48808723,77.878,77.84,22.82287996]
[1771896270669,0.2,77.88,77.85,22.82287996]
[1771896271178,0.48808723,77.879,77.84,22.82287996]
[1771896271489,13.32851918,77.879,77.841,12.84670032]
[1771896271683,0.2,77.88,77.85,22.82287996]
[1771896272372,0.48808723,77.878,77.835,12.84758529]
[1771896272689,0.48808723,77.878,77.84,22.82287996]
[1771896272881,13.52850882,77.88,77.85,22.82287996]
[1771896273082,13.32851918,77.879,77.835,12.84758529]
[1771896273286,0.48808723,77.867,77.83,22.82287996]
[1771896273490,0.48808723,77.839,77.788,12.85540621]
[1771896273795,0.28432314,77.866,77.77,22.82287996]
[1771896273796,22.82287996,77.81,77.77,22.82287996]
[1771896273975,22.82287996,77.85,77.753,32.15298016]
[1771896273976,0.48808723,77.8,77.753,32.15298016]
[1771896274289,22.82287996,77.8,77.751,12.86157091]
[1771896274472,22.82287996,77.79,77.751,12.86157091]
[1771896274669,8.123,97.0,77.734,0.2]
[1771896274670,22.82287996,77.77,77.734,0.2]
[1771896274875,22.82287996,77.76,77.721,0.2]
[1771896275194,0.48808723,77.779,77.731,0.48432314]
[1771896275367,0.48808723,77.769,77.73,22.82287996]
[1771896275572,12.85699033,77.779,77.731,0.28432314]
[1771896275794,22.82287996,77.77,77.73,23.02287996]
[1771896275983,193.51129835,78.187,77.721,45.03287399]
[1771896275984,22.82287996,77.79,77.75,22.82287996]
[1771896276291,23.31096719,77.78,77.74,22.82287996]
[1771896276489,22.82287996,77.78,77.74,22.82287996]
[1771896276692,22.82287996,77.78,77.721,45.03287399]
[1771896276693,0.48808723,77.769,77.73,22.82287996]
[1771896276880,0.48808723,77.769,77.731,0.28432314]
[1771896277284,0.48808723,77.769,77.73,22.82287996]
[1771896277479,35.67980886,77.78,77.732,0.2]
[1771896277676,22.82287996,77.76,77.72,22.82287996]
[1771896277983,0.48808723,77.769,77.722,0.2]
[1771896278181,12.85694081,77.779,77.73,17.24498617]
[1771896278490,0.48808723,77.778,77.731,0.14216157]
[1771896278688,0.48808723,77.778,77.731,0.28432314]
[1771896278881,0.48808723,77.779,77.731,0.28432314]
[1771896279084,0.48808723,77.769,77.731,0.28432314]
[1771896279290,17.5330734,77.78,77.731,0.28432314]
[1771896279472,17.04498617,77.79,77.751,0.28432314]
[1771896279679,0.48808723,77.799,77.761,0.28432314]
[1771896280294,17.04498617,77.8,77.743,0.28432314]
[1771896280295,0.48808723,77.779,77.743,0.28432314]
[1771896280476,17.04498617,77.8,77.761,0.28432314]
[1771896280477,0.48808723,77.799,77.761,0.28432314]
[1771896280677,0.48808723,77.799,77.76,17.04498617]
[1771896280898,0.48808723,77.789,77.751,0.28432314]
[1771896281508,0.48808723,77.779,77.741,0.28432314]
[1771896281798,0.48808723,77.779,77.74,17.0319024]
[1771896281799,0.48808723,77.769,77.733,0.28432314]
[1771896282099,0.48808723,77.749,77.701,12.86984723]
[1771896282280,0.48808723,77.749,77.71,17.0319024]
[1771896282684,0.48808723,77.729,77.691,12.87150377]
[1771896282894,17.0319024,77.72,77.68,17.0319024]
[1771896283094,0.48808723,77.709,77.661,12.87633588]
[1771896283294,0.48808723,77.728,77.69,17.0319024]
[1771896283494,0.48808723,77.741,77.71,17.0319024]
[1771896283698,17.0319024,77.75,77.71,17.0319024]
[1771896283906,0.48808723,77.748,77.701,12.86973957]
[1771896284107,17.51998963,77.74,77.702,0.14216157]
[1771896284406,0.48808723,77.74,77.702,0.14216157]
[1771896284597,0.48808723,77.74,77.702,0.28432314]
[1771896285106,0.48808723,77.748,77.702,0.28432314]
[1771896285610,12.86223262,77.747,77.711,0.14216157]
[1771896285816,0.48808723,77.762,77.721,0.28432314]
[1771896286303,3.69383402,77.786,77.703,45.04330591]
[1771896286304,0.48808723,77.777,77.741,0.28432314]
[1771896286487,12.85659003,77.782,77.741,0.28432314]
[1771896286802,17.0319024,77.79,77.74,17.0319024]
[1771896286803,17.0319024,77.79,77.751,0.28432314]
[1771896287003,0.48808723,77.789,77.751,0.28432314]
[1771896287301,0.48808723,77.779,77.741,0.28432314]
[1771896287506,0.48808723,77.767,77.721,0.14216157]
[1771896287809,0.5,77.778,77.741,0.28432314]
[1771896288505,0.5,77.789,77.74,17.0319024]
[1771896288702,0.5,77.789,77.741,0.08432314]
[1771896288904,0.5,77.802,77.76,17.0319024]
[1771896289284,0.5,77.799,77.75,17.0319024]
[1771896289485,0.5,77.799,77.76,16.8319024]
[1771896289693,0.5,77.799,77.76,17.0319024]
[1771896289900,0.5,77.814,77.77,17.0319024]
[1771896290524,12.84828761,77.832,77.8,17.0319024]
[1771896290693,0.5,77.829,77.78,17.0319024]
[1771896290895,17.0319024,77.81,77.771,0.28432314]
[1771896291204,0.5,77.809,77.771,0.28432314]
[1771896291917,0.5,77.799,77.76,17.0319024]
[1771896292085,0.5,77.813,77.771,0.28432314]
[1771896292290,0.5,77.813,77.75,17.0319024]
[1771896292291,0.5,77.813,77.781,0.28432314]
[1771896292496,0.5,77.813,77.75,17.0319024]
[1771896292497,17.0319024,77.81,77.77,17.0319024]
[1771896292798,0.5,77.811,77.771,0.28432314]
[1771896292994,0.5,77.811,77.781,0.28432314]
[1771896293311,17.0319024,77.81,77.76,17.0319024]
[1771896293507,17.0319024,77.81,77.761,0.14216157]
[1771896293913,12.8519837,77.809,77.762,12.85975154]
[1771896294706,0.2,77.811,77.771,0.28432314]
[1771896295005,0.5,77.789,77.725,5.36086188]
[1771896295313,0.5,77.789,77.751,0.28432314]
[1771896295606,0.5,77.789,77.728,3.69383402]
[1771896295607,0.5,77.789,77.74,17.0319024]
[1771896295999,0.5,77.789,77.76,17.0319024]
[1771896296200,0.5,77.789,77.751,0.28432314]
[1771896296404,0.5,77.788,77.74,17.0319024]
[1771896296716,0.5,77.769,77.72,17.0319024]
[1771896296886,0.5,77.769,77.721,12.86653542]
[1771896297091,0.5,77.749,77.692,12.8713381]
[1771896297291,0.5,77.739,77.692,45.04968336]
[1771896297507,0.5,77.739,77.7,17.0319024]
[1771896298098,0.5,77.737,77.69,17.0319024]
[1771896298510,0.5,77.729,77.673,3.69383402]
[1771896298712,45.02302605,77.738,77.67,17.0319024]
[1771896298713,0.5,77.719,77.67,17.0319024]
[1771896299016,0.5,77.709,77.66,17.0319024]
[1771896299219,0.5,77.699,77.651,12.87813421]
[1771896299529,0.5,77.709,77.651,45.07346974]
[1771896299690,0.5,77.699,77.67,17.0319024]
[1771896299890,0.5,77.712,77.68,17.0319024]
[1771896300091,12.86819111,77.711,77.671,12.87481814]
[1771896300288,0.5,77.71,77.671,12.87481814]
[1771896300594,0.5,77.71,77.67,17.0319024]
[1771896300802,0.5,77.699,77.652,32.19451776]
[1771896301291,0.5,77.699,77.65,17.1319024]
[1771896301292,0.5,77.699,77.661,0.28432314]
[1771896301513,0.5,77.699,77.653,12.87780253]
[1771896301714,0.5,77.725,77.671,0.28432314]
[1771896301907,0.5,77.725,77.653,12.87780253]
[1771896301908,0.5,77.719,77.681,0.28432314]
[1771896302107,0.5,77.717,77.681,0.28432314]
[1771896302496,0.5,77.717,77.69,17.0319024]
[1771896302701,0.5,77.717,77.682,12.87299503]
[1771896302995,12.8669493,77.719,77.69,17.0319024]
[1771896303299,0.5,77.709,77.681,0.14216157]
[1771896303505,12.86561806,77.727,77.691,0.28432314]
[1771896303897,12.86561806,77.727,77.7,17.0319024]
[1771896304197,12.86561806,77.727,77.671,45.06180123]
[1771896304198,12.86206719,77.748,77.711,12.86819111]
[1771896304404,0.5,77.747,77.711,12.86819111]
[1771896304600,17.0319024,77.78,77.74,17.0319024]
[1771896304795,0.5,77.762,77.731,0.28432314]
[1771896304996,0.5,77.774,77.75,17.0319024]
[1771896305197,0.5,77.799,77.761,0.28432314]
[1771896305496,17.0319024,77.85,77.761,0.28432314]
[1771896305497,0.7,77.811,77.771,0.28432314]
[1771896305702,0.2,77.811,77.781,0.28432314]
[1771896305915,0.2,77.811,77.791,0.28432314]
[1771896306103,0.5,77.809,77.78,17.0319024]
[1771896306425,0.5,77.799,77.771,0.28432314]
[1771896306800,0.2,77.811,77.771,0.28432314]
[1771896307000,0.2,77.811,77.8,17.0319024]
[1771896307617,0.2,77.811,77.801,0.28432314]
[1771896308418,0.5,77.839,77.801,0.28432314]
[1771896308813,0.5,77.829,77.791,0.28432314]
[1771896309003,44.95781478,77.851,77.768,3.69383402]
[1771896309004,0.5,77.819,77.781,0.28432314]
[1771896309206,0.5,77.819,77.79,17.0319024]
[1771896309405,0.5,77.831,77.791,0.28432314]
[1771896309808,0.5,77.829,77.791,0.28432314]
[1771896310200,0.5,77.829,77.8,17.0319024]
[1771896310506,0.5,77.827,77.791,12.85494643]
[1771896310806,0.5,77.833,77.8,17.0319024]
[1771896311004,17.0319024,77.81,77.77,17.0319024]
[1771896311198,0.5,77.809,77.77,17.0319024]
[1771896311405,0.5,77.829,77.8,17.0319024]
[1771896311909,0.5,77.829,77.801,0.28432314]
[1771896312420,0.5,77.829,77.81,29.88361262]
[1771896312716,0.5,77.841,77.81,17.0319024]
[1771896312914,17.0319024,77.84,77.8,17.0319024]
[1771896313216,0.28432314,77.848,77.79,17.0319024]
[1771896313429,44.95883054,77.849,77.801,0.28432314]
[1771896313605,51.36227424,77.879,77.801,0.28432314]
[1771896313606,17.0319024,77.87,77.83,17.0319024]
[1771896313919,49.13701833,77.87,77.821,0.28432314]
[1771896314111,49.13701833,77.87,77.83,17.0319024]
[1771896314319,61.97893434,77.87,77.831,12.84835091]
[1771896315121,12.84043195,77.879,77.85,17.0319024]
[1771896315452,12.83826513,77.893,77.86,17.0319024]
[1771896315609,12.83895938,77.888,77.86,17.0319024]
[1771896315806,12.83961417,77.884,77.851,0.28432314]
[1771896316129,0.46431594,77.888,77.851,0.28432314]
[1771896316416,0.46431594,77.888,77.835,0.47962786]
[1771896316417,0.46431594,77.877,77.821,0.47962786]
[1771896316600,0.46431594,77.869,77.831,0.28432314]
[1771896316799,0.46431594,77.859,77.81,0.47962786]
[1771896317109,17.49621834,77.87,77.83,17.0319024]
[1771896317304,17.0319024,77.86,77.823,0.47962786]
[1771896317506,0.46431594,77.859,77.821,0.28432314]
[1771896317705,0.46431594,77.859,77.82,17.0319024]
[1771896317910,96.30447622,77.878,77.8,17.0319024]
[1771896317911,0.46920019,77.839,77.8,17.0319024]
[1771896318102,0.46920019,77.852,77.82,17.0319024]
[1771896318307,0.46920019,77.852,77.811,0.28432314]
[1771896318510,0.46920019,77.866,77.83,17.0319024]
[1771896318801,0.46920019,77.859,77.812,12.8514882]
[1771896319002,0.46920019,77.859,77.83,17.0319024]
[1771896319203,0.46920019,77.859,77.821,0.28432314]
[1771896319709,0.46920019,77.859,77.82,17.0319024]
[1771896320120,0.46920019,77.859,77.812,12.8514882]
[1771896320325,0.46920019,77.849,77.812,12.8514882]
[1771896320520,0.46920019,77.847,77.81,17.0319024]
[1771896320720,0.46920019,77.847,77.811,12.99381493]
[1771896321220,0.46920019,77.847,77.801,12.85315898]
[1771896321421,0.46920019,77.847,77.82,17.0319024]
[1771896321822,0.46920019,77.847,77.81,17.0319024]
[1771896322629,0.48948556,77.839,77.801,0.28432314]
[1771896322832,0.48948556,77.839,77.776,12.85731242]
[1771896322833,17.0319024,77.82,77.776,12.85731242]
[1771896323119,3.69383402,77.843,77.75,1.28617363]
[1771896323120,17.0319024,77.83,77.79,17.48655926]
[1771896323322,17.0319024,77.82,77.777,0.45465686]
[1771896323520,17.0319024,77.82,77.78,17.0319024]
[1771896323922,17.0319024,77.82,77.777,0.45465686]
[1771896324435,211.95694059,77.846,77.774,12.85776737]
[1771896324436,0.28432314,77.845,77.782,0.45465686]
[1771896324729,0.48948556,77.829,77.783,13.3109365]
[1771896324926,0.48948556,77.829,77.792,0.45465686]
[1771896325111,0.48948556,77.829,77.79,17.0319024]
[1771896325112,0.48948556,77.829,77.783,12.85627964]
[1771896325312,17.52138796,77.82,77.783,12.85627964]
[1771896325615,0.48948556,77.832,77.791,0.45465686]
[1771896325814,0.48948556,77.829,77.783,12.85627964]
[1771896326014,0.48948556,77.829,77.783,13.3109365]
[1771896326324,0.48948556,77.829,77.79,17.0319024]
[1771896326523,17.0319024,77.83,77.79,17.0319024]
[1771896326524,0.48948556,77.827,77.79,17.0319024]
[1771896326821,0.48948556,77.827,77.785,13.31060595]
[1771896327032,0.48948556,77.827,77.786,0.45465686]
[1771896327323,0.48948556,77.827,77.79,17.48655926]
[1771896327529,0.48948556,77.827,77.79,0.45465686]
[1771896328217,0.48948556,77.819,77.78,29.88860713]
[1771896328406,0.48948556,77.819,77.781,0.28432314]
[1771896328608,12.84884617,77.828,77.793,0.45465686]
[1771896328825,0.48948556,77.827,77.793,0.45465686]
[1771896329413,32.60341503,77.848,77.802,0.45465686]
[1771896329723,0.48948556,77.846,77.802,0.45465686]
[1771896329930,0.48948556,77.839,77.801,0.28432314]
[1771896330230,0.48948556,77.839,77.801,0.73898]
[1771896330456,0.48948556,77.839,77.801,0.45465686]
[1771896330639,17.0319024,77.83,77.792,12.85479226]
[1771896330845,44.96518409,77.838,77.772,12.85805963]
[1771896330846,0.48948556,77.819,77.772,12.85805963]
[1771896331136,0.48948556,77.789,77.743,0.45465686]
[1771896331317,17.0319024,77.78,77.744,12.86272895]
[1771896331630,0.48948556,77.789,77.751,0.45465686]
[1771896331826,0.48948556,77.795,77.751,0.45465686]
[1771896332028,0.48948556,77.779,77.734,12.86437658]
[1771896332207,0.48948556,77.779,77.74,0.45465686]
[1771896332413,0.48948556,77.779,77.741,0.45465686]
[1771896332630,12.85710612,77.778,77.743,0.45465686]
[1771896332841,12.85710612,77.778,77.75,17.0319024]
[1771896333010,12.85710612,77.778,77.743,0.45465686]
[1771896333326,0.48948556,77.777,77.743,0.45465686]
[1771896333535,12.85628188,77.783,77.751,0.28432314]
[1771896333735,0.48948556,77.799,77.76,17.0319024]
[1771896333928,0.48948556,77.798,77.76,0.45465686]
[1771896334233,0.48948556,77.798,77.761,0.28432314]
[1771896334422,12.85363565,77.799,77.77,17.0319024]
[1771896334729,0.48948556,77.808,77.763,13.31424303]
[1771896334922,0.48948556,77.808,77.764,0.45465686]
[1771896335122,0.48948556,77.808,77.77,17.48655926]
[1771896335334,0.48948556,77.808,77.771,0.45465686]
[1771896336140,17.0319024,77.82,77.782,0.45465686]
[1771896336447,13.33354582,77.857,77.812,0.45465686]
[1771896336728,13.33653899,77.839,77.802,13.30779688]
[1771896336911,12.84538015,77.849,77.811,0.73898]
[1771896337328,0.48948556,77.85,77.82,17.0319024]
[1771896337534,12.8447238,77.853,77.82,17.0319024]
[1771896337724,12.84326679,77.862,77.831,0.45465686]
[1771896338613,17.0319024,77.86,77.831,0.45465686]
[1771896338812,17.0319024,77.86,77.821,0.28432314]
[1771896339019,12.84373033,77.859,77.822,12.8498368]
[1771896339225,12.84373033,77.859,77.822,13.30449366]
[1771896339612,17.0319024,77.87,77.832,0.45465686]
[1771896339817,12.84109149,77.875,77.841,0.45465686]
[1771896340733,12.84043195,77.879,77.85,17.0319024]
[1771896341233,0.2,77.88,77.851,12.84505015]
[1771896341530,0.2,77.88,77.852,0.45465686]
[1771896341738,17.18890662,77.89,77.851,12.84505015]
[1771896341739,0.2,77.89,77.87,16.98890662]
[1771896342632,16.98890662,77.92,77.861,0.45465686]
[1771896342633,0.48948556,77.91,77.861,0.45465686]
[1771896342841,0.48948556,77.91,77.871,0.14216157]
[1771896342842,0.48948556,77.909,77.871,0.14216157]
[1771896343215,0.48948556,77.932,77.9,16.98890662]
[1771896343436,12.83186408,77.931,77.9,16.98890662]
[1771896343638,0.48948556,77.947,77.91,16.98890662]
[1771896343821,0.48948556,77.929,77.89,16.98890662]
[1771896344133,0.48948556,77.94,77.91,16.98890662]
[1771896344714,0.48948556,77.939,77.9,16.98890662]
[1771896345031,0.48948556,77.929,77.885,0.36082161]
[1771896345227,17.47839218,77.94,77.895,0.36082161]
[1771896345426,17.47839218,77.94,77.892,0.36202716]
[1771896345735,0.2,77.95,77.921,0.14216157]
[1771896345736,1e-08,77.95,77.921,0.14216157]
[1771896345926,1e-08,77.95,77.901,0.36202716]
[1771896345927,0.48948556,77.949,77.901,0.36202716]
[1771896346119,0.48948556,77.948,77.902,0.28432314]
[1771896346324,0.48948556,77.929,77.884,0.14216157]
[1771896346523,44.90115331,77.949,77.877,13.2038452]
[1771896346524,17.47839218,77.92,77.877,13.2038452]
[1771896346723,16.98890662,77.93,77.891,0.36319629]
[1771896346930,0.48948556,77.919,77.881,0.28432314]
[1771896347127,12.83296415,77.925,77.883,12.98193404]
[1771896347326,0.48948556,77.939,77.893,0.50673233]
[1771896347518,1e-08,77.95,77.92,16.98890662]
[1771896347917,1e-08,77.95,77.883,319.93528757]
[1771896347918,0.48113875,77.939,77.902,0.28432314]
[1771896348218,12.82890094,77.949,77.9,16.98890662]
[1771896348219,0.48113875,77.948,77.9,16.98890662]
[1771896348417,0.48113875,77.948,77.901,0.28432314]
[1771896348624,0.48113875,77.948,77.9,16.98890662]
[1771896348830,12.82890094,77.949,77.905,0.36926973]
[1771896349027,16.98890662,77.94,77.891,0.36926973]
[1771896349230,12.82960608,77.945,77.897,0.37029044]
[1771896349435,12.82960608,77.945,77.903,0.28432314]
[1771896349633,30.29885258,77.95,77.905,0.28432314]
[1771896349942,0.48113875,77.949,77.905,0.37029044]
[1771896350139,1e-08,77.95,77.92,16.98890662]